[Event "CCT Julius Baer-D3 2024"]
[Site "Online"]
[Date "2024.09.28"]
[Round "52"]
[White "Niemann, Hans Moke"]
[Black "Svane, Frederik"]
[Result "1-0"]
[ECO "B90"]
[WhiteElo "2733"]
[BlackElo "2640"]
[Annotator "TA"]
[PlyCount "117"]
[EventDate "2024.09.25"]
[EventType "swiss"]
[EventCountry "NET"]
[SourceTitle "playchess.com"]
[Source "ChessBase"]
[SourceQuality "1"]
[TimeControl "600+2"]

{[%evp 11,117,0,16,20,27,17,24,16,32,29,26,25,33,14,21,12,8,24,30,25,19,17,17,13,37,0,22,19,22,-12,-11,-1,0,0,0,-30,-35,-33,-38,-26,0,0,-12,-12,-14,0,0,0,0,0,2,0,9,0,0,0,0,0,0,0,0,0,0,0,0,0,0,0,0,0,0,0,0,0,0,0,0,0,0,0,0,0,1,1,1,1,2,2,8,0,80,75,200,200,142,152,273,250,331,331,327,143,1675,1101,4689,4689,4637,4610]} 1. e4 {[%emt 0:00:02]} c5 {[%emt 0:00:05]} 2. Nf3 {[%emt 0:00:01]} d6 {[%emt 0:00:00]} 3. d4 {[%emt 0:00:06]} cxd4 {[%emt 0:00:01]} 4. Nxd4 {[%emt 0:00:01]} Nf6 {[%emt 0:00:00]} 5. Nc3 {[%emt 0:00:00]} a6 {[%emt 0:00:01]} 6. Bd3 {[%emt 0:00:00]} g6 {[%emt 0:00:01]} 7. Be3 {[%emt 0:00:11]} Ng4 {[%emt 0:00:02]} 8. Bg5 {[%emt 0:00:01]} Bg7 {[%emt 0:00:03]} 9. Be2 {[%emt 0:00:03] White has an edge.} h6 {[%emt 0:00:01]} 10. Bc1 {[%emt 0:00:20]} Nf6 {[%emt 0:00:17]} 11. Be3 {[%emt 0:00:45]} Bd7 {[%emt 0:00:01]} 12. a4 {[%emt 0:00:09]} Nc6 {[%emt 0:00:05]} 13. O-O {[%emt 0:00:04]} O-O {[%emt 0:00:26]} 14. f3 {[%emt 0:00:04]} Rc8 {[%emt 0:00:28]} 15. Nxc6 {[%emt 0:00:05]} Bxc6 {[%emt 0:00:04]} 16. a5 {[%emt 0:00:01]} Nd7 {[%emt 0:00:57]} 17. Qd2 {[%emt 0:00:04]} Kh7 {[%emt 0:00:02]} 18. Ra2 {[%emt 0:00:47]} Qc7 {[%emt 0:00:41]} 19. Rc1 {[%emt 0:00:09]} Rfe8 {[%emt 0:01:20]} 20. Bf1 {[%emt 0:00:13]} e6 {[%emt 0:00:58]} 21. Bf2 {[%emt 0:00:04]} Ne5 {[%emt 0:00:32]} 22. Raa1 {[%emt 0:00:44]} f5 {[%emt 0:00:43]} 23. Qe1 {[%emt 0:00:59]} Rf8 {[%emt 0:00:22]} 24. Ra3 {[%emt 0:00:06]} Qe7 {[%emt 0:00:09]} 25. exf5 {[%emt 0:00:06]} Rxf5 {[%emt 0:00:06][%cal Oe5f3] Strongly threatening ...Nxf3+!} 26. Ne4 {[%emt 0:00:05]} Bxe4 {[%emt 0:00:40]} 27. Qxe4 {[%emt 0:00:05]} d5 {[%emt 0:00:01]} 28. Qe1 {[%emt 0:00:13]} Nc4 {[%emt 0:00:09] Repels Re3} 29. Bxc4 {[%emt 0:00:04]} Rxc4 {[%emt 0:00:36]} 30. Re3 {[%emt 0:00:04]} e5 {[%emt 0:00:14]} 31. c3 {[%emt 0:00:01]} e4 {[%emt 0:00:32]} 32. Qe2 {[%emt 0:00:13]} Qf7 {[%emt 0:00:03] aiming for ...Bd4.} 33. fxe4 {[%emt 0:00:03]} dxe4 {[%emt 0:00:09] Threatens to win with ...Bd4.} 34. Rf1 {[%emt 0:00:16]} Rxa5 {[%emt 0:00:07]} 35. Rxe4 {[%emt 0:00:24]} Rxe4 {[%emt 0:00:01]} 36. Qxe4 {[%emt 0:00:00]} Rf5 {[%emt 0:00:00]} 37. Qe2 {[%emt 0:00:01]} a5 {[%emt 0:00:17]} 38. Rd1 {[%emt 0:00:06]} b5 {[%emt 0:00:03]} 39. h3 {[%emt 0:00:07]} Re5 {[%emt 0:00:02]} 40. Qg4 {[%emt 0:00:06]} h5 {[%emt 0:00:04]} 41. Qd7 {[%emt 0:00:11]} Rf5 {[%emt 0:00:18]} 42. Qxf7 {[%emt 0:00:07]} Rxf7 $11 {[%emt 0:00:00][%mdl 4096] Endgame. KRB-KRB} 43. Rd5 {[%emt 0:00:01]} Rb7 {[%emt 0:00:08]} 44. Bc5 {[%emt 0:00:03]} b4 {[%emt 0:00:20]} 45. cxb4 {[%emt 0:00:06]} axb4 {[%emt 0:00:00][%cal Ob7b5]} 46. Bd4 {[%emt 0:00:02]} Bxd4+ {[%emt 0:00:01]} 47. Rxd4 {[%emt 0:00:00] KR-KR} Kg7 {[%emt 0:00:05]} 48. Kf2 {[%emt 0:00:07]} Kf6 {[%emt 0:00:00]} 49. Ke3 {[%emt 0:00:06]} Re7+ {[%emt 0:00:05]} 50. Kd3 {[%emt 0:00:01] Rf4+ is the strong threat.} Re1 {[%emt 0:00:00]} (50... b3 $11) 51. Rxb4 $16 {[%emt 0:00:13] Hoping for Re4.} Rg1 {[%emt 0:00:01]} (51... Kf5 $16) 52. Rf4+ $18 {[%emt 0:00:01]} Ke5 {[%emt 0:00:02]} 53. Rf2 {[%emt 0:00:01]} g5 {[%emt 0:00:08]} (53... Kd5 $16 {is a better defense.} 54. b3 Rd1+ 55. Rd2 Rg1 56. Ke3+ Ke5) 54. b4 {[%emt 0:00:03]} g4 {[%emt 0:00:13] [#]} 55. hxg4 {[%emt 0:00:03]} hxg4 {[%emt 0:00:00] [#]} 56. Kc4 {[%emt 0:00:03]} (56. Rd2 $1 $18 {and the rest is easy.}) 56... Rc1+ $2 {[%emt 0:00:03][%mdl 8192]} (56... Kd6 $16 57. Kb5 Ke5) 57. Kb5 {[%emt 0:00:02] White is clearly winning.} Ke4 {[%emt 0:00:04]} 58. g3 {[%emt 0:00:20]} Rc8 {[%emt 0:00:04]} 59. Rf4+ {[%emt 0:00:01] Weighted Error Value: White=0.07 (flawless) /Black=0.13 (very precise) .  Loses game:     	---       	Black=1      Missed win:     	White=1     	---        Mistake:       	---       	Black=3      Inaccurate:     	White=3     	Black=3      OK:         	White=27    	Black=12     Best:        	White=3     	---} 1-0

[Event "CCT Julius Baer-D3 2024"]
[Site "Online"]
[Date "2024.09.28"]
[Round "52"]
[White "Navara, David"]
[Black "Predke, Alexandr"]
[Result "1-0"]
[ECO "C78"]
[WhiteElo "2681"]
[BlackElo "2671"]
[Annotator "TA"]
[PlyCount "101"]
[EventDate "2024.09.25"]
[EventType "swiss"]
[EventCountry "NET"]
[SourceTitle "playchess.com"]
[Source "ChessBase"]
[SourceQuality "1"]
[TimeControl "600+2"]

{[%evp 30,101,9,-7,10,8,28,-16,0,-26,-29,-60,-54,-54,-29,-33,-37,-33,-18,-8,-4,-8,-18,-17,0,0,0,0,0,-8,104,0,0,0,0,0,0,0,0,-8,0,0,0,0,0,0,0,0,0,0,117,72,94,99,158,156,958,940,1110,1095,1207,1445,1785,1682,29977,29980,29980,29981,29981,29981,29987,29988,29988,29989]} 1. e4 {[%emt 0:00:03]} e5 {[%emt 0:00:06]} 2. Nf3 {[%emt 0:00:01]} Nc6 {[%emt 0:00:01]} 3. Bb5 {[%emt 0:00:01]} a6 {[%emt 0:00:02]} 4. Ba4 {[%emt 0:00:02]} Nf6 {[%emt 0:00:01]} 5. O-O {[%emt 0:00:01]} b5 {[%emt 0:00:02]} 6. Bb3 {[%emt 0:00:01]} Bc5 {[%emt 0:00:01]} 7. c3 {[%emt 0:00:13]} d6 {[%emt 0:00:02]} 8. d4 {[%emt 0:00:01]} Bb6 {[%emt 0:00:00]} 9. Be3 $1 {[%emt 0:00:01][%mdl 4] is now more promising than 9.a4.} O-O {[%emt 0:00:15] C78: Ruy Lopez: Archangelsk and Möller Defences.} 10. h3 {[%emt 0:00:58]} h6 {[%emt 0:00:19]} 11. Nbd2 {[%emt 0:00:14]} exd4 {[%emt 0:00:04]} 12. cxd4 {[%emt 0:00:33]} Ne7 {[%emt 0:00:01]} 13. Re1 {[%emt 0:01:02]} c5 $146 {[%emt 0:00:13]} ({Predecessor:} 13... Bb7 14. Bc2 Re8 15. a3 Ng6 16. d5 c6 17. dxc6 {½-½ Hracek,Z (2631)-Brkic,A (2586) EU-ch 16th Jerusalem 2015 (8)}) 14. e5 {[%emt 0:00:14]} dxe5 {[%emt 0:00:04]} 15. dxc5 {[%emt 0:00:18]} Bc7 {[%emt 0:00:03]} 16. Nf1 {[%emt 0:00:49]} Bb7 {[%emt 0:02:34]} 17. Ng3 {[%emt 0:00:15]} Re8 {[%emt 0:01:04]} 18. Qxd8 {[%emt 0:00:30]} Raxd8 {[%emt 0:00:00]} 19. Rad1 {[%emt 0:00:07]} Ned5 {[%emt 0:01:24]} 20. Bc1 {[%emt 0:01:13]} e4 $1 {[%emt 0:00:23]} 21. Nd4 {[%emt 0:00:03]} e3 {[%emt 0:00:12]} (21... Nb4 {simplifies} 22. Be3 Nd3 23. Re2 Bxg3 24. fxg3 Nxc5 25. Bc2 Na4) 22. Ndf5 {[%emt 0:00:40]} exf2+ {[%emt 0:00:48]} 23. Kxf2 {[%emt 0:00:00]} Re6 {[%emt 0:00:03]} (23... Rxe1 $5 24. Kxe1 Nb4 25. Rxd8+ Bxd8 $15) 24. a3 {[%emt 0:00:34]} Rde8 {[%emt 0:00:10]} 25. Nd6 {[%emt 0:00:41]} (25. Bc2 {is more complex.} b4 26. Bd2 bxa3 27. bxa3 Rc8 28. Ne4) 25... Bxd6 {[%emt 0:01:45]} 26. cxd6 {[%emt 0:00:01]} Rxe1 {[%emt 0:00:25]} (26... Rxd6 {simplifies} 27. Rxe8+ Nxe8 28. Ne4 Rc6) 27. Rxe1 {[%emt 0:00:00]} Rxe1 {[%emt 0:00:04]} 28. Kxe1 {[%emt 0:00:00]} Nb6 {[%emt 0:00:03]} 29. Kf2 {[%emt 0:00:32]} Bd5 {[%emt 0:00:04] [#]} (29... Nc8 $11 {remains equal.}) 30. Bc2 {[%emt 0:00:02]} ({Only move:} 30. Bxd5 $1 $16 Nbxd5 31. Bd2) 30... Nc4 $11 {[%emt 0:00:14]} 31. Nf5 {[%emt 0:00:08]} Be6 {[%emt 0:00:01]} 32. b3 {[%emt 0:00:39]} Bxf5 {[%emt 0:00:03]} 33. Bxf5 {[%emt 0:00:00]} Nxd6 {[%emt 0:00:00]} 34. Bd3 {[%emt 0:00:01]} Kf8 {[%emt 0:00:08]} 35. Ke3 {[%emt 0:00:12]} Ke7 {[%emt 0:00:06]} 36. Kd4 {[%emt 0:00:01]} Kd7 {[%emt 0:00:10]} 37. a4 {[%emt 0:00:12]} Kc6 {[%emt 0:00:04]} 38. Ba3 {[%emt 0:00:02]} Nfe8 {[%emt 0:00:09]} 39. Be2 {[%emt 0:00:14]} f6 {[%emt 0:00:07]} (39... bxa4 $11 40. bxa4 (40. Bxa6 $2 Nc7 $19) 40... Nc7) 40. Bf3+ $16 {[%emt 0:00:04]} Kd7 {[%emt 0:00:00]} 41. Kc5 {[%emt 0:00:07]} f5 {[%emt 0:00:03]} (41... bxa4 $142 42. bxa4 Kc7) 42. Bc6+ $16 {[%emt 0:00:11]} Ke6 $2 {[%emt 0:00:02] [#]} (42... Kd8 $16 43. Bb2 (43. axb5 Nxb5 44. Bb4 Nec7 $16) 43... Ne4+ 44. Bxe4 fxe4) 43. a5 $1 $18 {[%emt 0:00:13]} ({Less strong is} 43. axb5 axb5 44. Bd5+ (44. Bxb5 Nxb5 45. Kxb5 Kd5 $11) 44... Kd7 $14) 43... g5 {[%emt 0:00:02]} 44. Kb6 {[%emt 0:00:02]} Nf6 {[%emt 0:00:04]} 45. Kxa6 {[%emt 0:00:02]} f4 {[%emt 0:00:03]} 46. Kb6 {[%emt 0:00:03]} h5 {[%emt 0:00:02]} 47. Bxd6 {[%emt 0:00:01]} Kxd6 {[%emt 0:00:01]} 48. a6 {[%emt 0:00:01]} g4 {[%emt 0:00:03]} 49. hxg4 {[%emt 0:00:00]} h4 {[%emt 0:00:02]} 50. a7 {[%emt 0:00:01]} f3 {[%emt 0:00:01]} 51. gxf3 {[%emt 0:00:03]} (51. a8=B Nd5+ 52. Bxd5 f2 $17) 1-0

[Event "CCT Julius Baer-D3 2024"]
[Site "Online"]
[Date "2024.09.28"]
[Round "52"]
[White "Deac, Bogdan-Daniel"]
[Black "Makarian, Rudik"]
[Result "1/2-1/2"]
[ECO "A13"]
[WhiteElo "2680"]
[BlackElo "2550"]
[Annotator "TA"]
[PlyCount "137"]
[EventDate "2024.09.25"]
[EventType "swiss"]
[EventCountry "NET"]
[SourceTitle "playchess.com"]
[Source "ChessBase"]
[SourceQuality "1"]
[TimeControl "600+2"]

{[%evp 46,137,55,55,55,55,63,26,26,13,10,10,10,10,10,12,35,0,0,0,36,0,0,0,0,0,0,0,0,0,0,0,0,0,0,0,0,0,0,0,0,0,0,0,0,0,2,14,0,10,3,10,563,0,0,0,0,0,0,0,0,0,18,0,0,0,0,0,0,0,0,0,0,0,31,0,0,0,0,0,0,0,0,0,0,0,0,0,0,0,0,0,0,0]} 1. Nf3 {[%emt 0:00:04]} Nf6 {[%emt 0:02:04]} 2. c4 {[%emt 0:00:02]} e6 {[%emt 0:00:01]} 3. b3 {[%emt 0:00:03]} d5 {[%emt 0:00:04]} 4. Bb2 {[%emt 0:00:01]} dxc4 {[%emt 0:00:02]} 5. bxc4 {[%emt 0:00:01]} b6 {[%emt 0:00:00]} 6. g3 {[%emt 0:00:10] A13: English Opening: 1...e6.} Bb7 {[%emt 0:00:01]} 7. Bg2 {[%emt 0:00:00]} Be7 {[%emt 0:00:03]} 8. O-O {[%emt 0:01:45]} O-O {[%emt 0:00:06]} 9. d3 {[%emt 0:00:01]} c5 {[%emt 0:00:02]} 10. a4 {[%emt 0:00:13]} Nc6 {[%emt 0:00:02]} 11. Ne5 {[%emt 0:00:22]} Qc7 {[%emt 0:00:07]} 12. Nxc6 {[%emt 0:00:04]} Bxc6 {[%emt 0:00:00]} 13. Nd2 {[%emt 0:00:05]} Bxg2 {[%emt 0:00:12]} 14. Kxg2 {[%emt 0:00:00]} Nd7 {[%emt 0:00:14]} 15. a5 {[%emt 0:00:24]} Qc6+ {[%emt 0:00:18]} 16. Kg1 {[%emt 0:00:25]} Rfb8 $146 {[%emt 0:00:13]} ({Predecessor:} 16... h5 17. Nf3 Rab8 18. axb6 axb6 19. Qd2 b5 20. cxb5 Rxb5 21. Ra7 Rb7 22. Rfa1 Rxa7 23. Rxa7 Ra8 {½-½ Rozen,E (2377)-Efroimski,M (2419) Novi Sad TS Mix 224th 2021 (4)}) 17. axb6 {[%emt 0:00:30]} axb6 {[%emt 0:00:02]} 18. Qb3 {[%emt 0:00:02]} h5 {[%emt 0:00:07]} 19. h4 {[%emt 0:00:06]} Kh7 {[%emt 0:00:45]} 20. Nf3 {[%emt 0:00:39]} Rxa1 {[%emt 0:00:12]} 21. Rxa1 {[%emt 0:00:03]} Ra8 {[%emt 0:00:01]} 22. Rxa8 {[%emt 0:00:36]} Qxa8 {[%emt 0:00:00]} 23. Qb5 {[%emt 0:00:02]} Qb7 {[%emt 0:00:13]} 24. Ne5 {[%emt 0:02:06]} Nxe5 {[%emt 0:00:05]} 25. Bxe5 {[%emt 0:00:02]} Bf6 {[%emt 0:02:38]} 26. Bxf6 {[%emt 0:02:00]} (26. Bd6 {keeps more tension.} Bd4 27. Qa4 Kg6 28. Qe8) 26... gxf6 {[%emt 0:00:00]} 27. d4 {[%emt 0:00:06]} Qe4 {[%emt 0:01:41]} 28. dxc5 {[%emt 0:00:23]} bxc5 {[%emt 0:00:00]} 29. Qxc5 {[%emt 0:00:06]} Qxe2 {[%emt 0:00:01]} 30. Qd4 {[%emt 0:00:04]} e5 {[%emt 0:00:56]} 31. Qd5 {[%emt 0:00:09]} Kg7 {[%emt 0:00:07]} 32. c5 {[%emt 0:00:01]} e4 {[%emt 0:00:28]} 33. Qd4 {[%emt 0:00:09]} Qc2 {[%emt 0:00:02]} 34. Kg2 {[%emt 0:00:04]} Kg6 {[%emt 0:00:03]} 35. Qe3 {[%emt 0:00:14]} Kg7 {[%emt 0:00:02]} 36. Kh2 {[%emt 0:00:08]} Kg6 {[%emt 0:00:01]} 37. Kg1 {[%emt 0:00:01]} Kg7 {[%emt 0:00:04]} 38. Qd4 {[%emt 0:00:01]} Kg6 {[%emt 0:00:01]} 39. Kf1 {[%emt 0:00:01]} Kg7 {[%emt 0:00:06]} 40. Ke1 {[%emt 0:00:03]} Kg6 {[%emt 0:00:01]} 41. Kf1 {[%emt 0:00:03]} Kg7 {[%emt 0:00:01]} 42. Qd5 {[%emt 0:00:01]} Kg6 {[%emt 0:00:11]} 43. c6 {[%emt 0:00:02]} Qc1+ {[%emt 0:00:01]} 44. Kg2 {[%emt 0:00:03]} Qc2 {[%emt 0:00:00]} 45. Kf1 {[%emt 0:00:01]} e3 {[%emt 0:00:10]} 46. fxe3 {[%emt 0:00:03]} Qc1+ {[%emt 0:00:00]} 47. Ke2 {[%emt 0:00:02]} Qc2+ $1 {[%emt 0:00:01]} 48. Kf3 {[%emt 0:00:01]} f5 $2 {[%emt 0:00:02][%mdl 8192] [#]} (48... Qc1 $1 $11 {and Black has nothing to worry.} 49. Kf4 Qf1+ 50. Qf3 Qb5 51. Qe4+ f5) 49. Qd6+ $2 {[%emt 0:00:05]} ({White has to play} 49. e4 $1 $18 {[%cal Re4f5]}) 49... f6 $11 {[%emt 0:00:02]} 50. Qd5 {[%emt 0:00:01]} Qc1 {[%emt 0:00:01]} 51. Qg8+ {[%emt 0:00:02]} Kh6 {[%emt 0:00:01]} 52. Qf8+ {[%emt 0:00:01]} Kg6 {[%emt 0:00:00]} 53. Qe8+ {[%emt 0:00:01]} Kg7 {[%emt 0:00:02]} 54. Qd7+ {[%emt 0:00:01]} (54. Qxh5 $2 Qf1#) 54... Kg6 {[%emt 0:00:00]} 55. e4 {[%emt 0:00:04]} Qc3+ {[%emt 0:00:03]} 56. Ke2 {[%emt 0:00:02]} Qc2+ {[%emt 0:00:00]} 57. Ke1 {[%emt 0:00:01]} Qc1+ {[%emt 0:00:02]} 58. Kf2 {[%emt 0:00:02]} Qc2+ {[%emt 0:00:00]} 59. Ke3 {[%emt 0:00:03]} Qc3+ {[%emt 0:00:03]} 60. Ke2 {[%emt 0:00:02]} Qc2+ {[%emt 0:00:01]} 61. Kf1 {[%emt 0:00:03]} Qc1+ {[%emt 0:00:02]} 62. Kg2 {[%emt 0:00:00]} Qc2+ {[%emt 0:00:00]} 63. Kh3 {[%emt 0:00:05]} Qxe4 {[%emt 0:00:01]} 64. Kh2 {[%emt 0:00:02]} Qe2+ {[%emt 0:00:01]} 65. Kg1 {[%emt 0:00:00]} Qe1+ {[%emt 0:00:01]} 66. Kg2 {[%emt 0:00:01]} Qe2+ {[%emt 0:00:00]} 67. Kg1 {[%emt 0:00:01]} Qe1+ {[%emt 0:00:03]} 68. Kg2 {[%emt 0:00:00]} Qe2+ {[%emt 0:00:01]} 69. Kg1 {[%emt 0:00:01]} 1/2-1/2

[Event "CCT Julius Baer-D3 2024"]
[Site "Online"]
[Date "2024.09.28"]
[Round "52"]
[White "Predke, Alexandr"]
[Black "Navara, David"]
[Result "1/2-1/2"]
[ECO "D38"]
[WhiteElo "2671"]
[BlackElo "2681"]
[Annotator "RC"]
[PlyCount "195"]
[EventDate "2024.09.25"]
[EventType "swiss"]
[EventCountry "NET"]
[SourceTitle "playchess.com"]
[Source "ChessBase"]
[SourceQuality "1"]
[TimeControl "600+2"]

1. d4 {[%emt 0:00:02]} Nf6 {[%emt 0:00:04]} 2. c4 {[%emt 0:00:02]} e6 {[%emt 0:00:01]} 3. Nf3 {[%emt 0:00:02]} d5 {[%emt 0:00:01]} 4. Nc3 {[%emt 0:00:01]} Bb4 {[%emt 0:00:03]} 5. Bg5 {[%emt 0:00:02]} h6 {[%emt 0:00:02]} 6. Bxf6 {[%emt 0:00:01]} Qxf6 {[%emt 0:00:00]} 7. Qa4+ {[%emt 0:00:01]} Nc6 {[%emt 0:00:02]} 8. e3 {[%emt 0:00:01]} O-O {[%emt 0:00:02]} 9. Be2 {[%emt 0:00:02]} dxc4 {[%emt 0:00:48]} 10. O-O {[%emt 0:00:02]} Rd8 {[%emt 0:00:43]} 11. Qb5 {[%emt 0:00:26]} Bxc3 {[%emt 0:00:53]} 12. bxc3 {[%emt 0:00:00]} Rb8 {[%emt 0:00:00]} 13. Qxc4 {[%emt 0:00:15]} Qe7 {[%emt 0:00:10]} 14. Bd3 {[%emt 0:00:33]} e5 {[%emt 0:01:08]} 15. Be4 {[%emt 0:01:14]} Be6 {[%emt 0:00:39]} 16. d5 {[%emt 0:01:09]} f5 {[%emt 0:00:01]} 17. dxe6 {[%emt 0:00:01]} fxe4 {[%emt 0:00:01]} 18. Qxe4 {[%emt 0:00:00]} Qxe6 {[%emt 0:00:01]} 19. c4 {[%emt 0:00:35]} Rd6 {[%emt 0:00:27]} 20. Rab1 {[%emt 0:00:34]} b6 {[%emt 0:00:23]} 21. Rb5 {[%emt 0:00:07]} Rbd8 {[%emt 0:00:17]} 22. h4 {[%emt 0:00:40]} a6 {[%emt 0:00:59]} 23. Rbb1 {[%emt 0:00:08]} Qg6 {[%emt 0:00:07]} 24. Nd2 {[%emt 0:00:02]} Qxe4 {[%emt 0:00:22]} 25. Nxe4 {[%emt 0:00:00]} Rd3 {[%emt 0:00:02]} 26. Rfc1 {[%emt 0:00:03]} Ra3 {[%emt 0:00:22]} 27. Rb2 {[%emt 0:00:01]} Ra4 {[%emt 0:00:18]} 28. f3 {[%emt 0:01:08]} Rd3 {[%emt 0:00:02]} 29. Kf2 {[%emt 0:00:01]} Rda3 {[%emt 0:00:07]} 30. Rd1 {[%emt 0:00:22]} Rxa2 {[%emt 0:00:05]} 31. Rxa2 {[%emt 0:00:00]} Rxa2+ {[%emt 0:00:00]} 32. Kg3 {[%emt 0:00:00]} Re2 {[%emt 0:00:27]} 33. Kg4 {[%emt 0:00:59]} Ne7 {[%emt 0:00:22]} 34. Rd7 {[%emt 0:00:10]} Kf7 {[%emt 0:00:03]} 35. Rxc7 {[%emt 0:00:41]} Rxg2+ {[%emt 0:00:28]} 36. Kh3 {[%emt 0:00:01]} Rc2 {[%emt 0:00:02]} 37. Rb7 {[%emt 0:00:14]} b5 {[%emt 0:00:30]} 38. cxb5 {[%emt 0:00:23]} axb5 {[%emt 0:00:00]} 39. Rxb5 {[%emt 0:00:01]} Ke6 {[%emt 0:00:02]} 40. Rb6+ {[%emt 0:00:05]} Rc6 {[%emt 0:00:05]} 41. Rb7 {[%emt 0:00:04]} Nf5 {[%emt 0:00:07]} 42. h5 {[%emt 0:00:01]} Rc1 {[%emt 0:00:21]} 43. Ng3 {[%emt 0:00:29]} Nxg3 {[%emt 0:00:18]} 44. Kxg3 {[%emt 0:00:00]} Rg1+ {[%emt 0:00:01]} 45. Kf2 {[%emt 0:00:07]} Rg5 {[%emt 0:00:01]} 46. Ra7 {[%emt 0:00:13]} Kf6 {[%emt 0:00:05]} 47. Ra6+ {[%emt 0:00:02]} Kf7 {[%emt 0:00:02]} 48. Ra7+ {[%emt 0:00:03]} Kf6 {[%emt 0:00:03]} 49. Ra6+ {[%emt 0:00:03]} Kf7 {[%emt 0:00:01]} 50. Ra5 {[%emt 0:00:01]} Rxh5 {[%emt 0:00:05]} 51. f4 {[%emt 0:00:02]} Kg6 {[%emt 0:00:18]} 52. fxe5 {[%emt 0:00:12]} Rf5+ {[%emt 0:00:05]} 53. Ke2 {[%emt 0:00:02]} Kf7 {[%emt 0:00:02]} 54. Kd3 {[%emt 0:00:01]} Rf1 {[%emt 0:00:08]} 55. Ra7+ {[%emt 0:00:07]} Ke6 {[%emt 0:00:01]} 56. Ke4 {[%emt 0:00:00]} h5 {[%emt 0:00:03]} 57. Rxg7 {[%emt 0:00:05]} h4 {[%emt 0:00:01]} 58. Rh7 {[%emt 0:00:01]} Ra1 {[%emt 0:00:02]} 59. Rh6+ {[%emt 0:00:02]} Ke7 {[%emt 0:00:01]} 60. Kf4 {[%emt 0:00:02]} Rf1+ {[%emt 0:00:01]} 61. Ke4 {[%emt 0:00:01]} Ra1 {[%emt 0:00:02]} 62. Rh8 {[%emt 0:00:11]} Ke6 {[%emt 0:00:03]} 63. Re8+ {[%emt 0:00:06]} Kf7 {[%emt 0:00:01]} 64. Rb8 {[%emt 0:00:00]} h3 {[%emt 0:00:06]} 65. Rh8 {[%emt 0:00:02]} Rh1 {[%emt 0:00:02]} 66. Rh7+ {[%emt 0:00:02]} Ke6 {[%emt 0:00:01]} 67. Rh6+ {[%emt 0:00:01]} Ke7 {[%emt 0:00:00]} 68. Kf5 {[%emt 0:00:00]} Rf1+ {[%emt 0:00:01]} 69. Kg4 {[%emt 0:00:01]} h2 {[%emt 0:00:01]} 70. Rxh2 {[%emt 0:00:02]} Ke6 {[%emt 0:00:01]} 71. Rh5 {[%emt 0:00:01]} Rf2 {[%emt 0:00:01]} 72. Kg3 {[%emt 0:00:02]} Rf5 {[%emt 0:00:04]} 73. Rh8 {[%emt 0:00:04]} Rxe5 {[%emt 0:00:02]} 74. Kf4 {[%emt 0:00:05]} Rf5+ {[%emt 0:00:01]} 75. Ke4 {[%emt 0:00:00]} Re5+ {[%emt 0:00:00]} 76. Kd4 {[%emt 0:00:01]} Rd5+ {[%emt 0:00:01]} 77. Kc4 {[%emt 0:00:01]} Rd7 {[%emt 0:00:01]} 78. Rh5 {[%emt 0:00:02]} Rd2 {[%emt 0:00:02]} 79. Kc3 {[%emt 0:00:01]} Rd1 {[%emt 0:00:01]} 80. Rg5 {[%emt 0:00:02]} Kf6 {[%emt 0:00:02]} 81. Rc5 {[%emt 0:00:01]} Ke6 {[%emt 0:00:01]} 82. Rc4 {[%emt 0:00:01]} Rc1+ {[%emt 0:00:02]} 83. Kd4 {[%emt 0:00:01]} Rxc4+ {[%emt 0:00:00]} 84. Kxc4 {[%emt 0:00:00]} Ke5 {[%emt 0:00:01]} 85. Kd3 {[%emt 0:00:00]} Kd5 {[%emt 0:00:00]} 86. e4+ {[%emt 0:00:00]} Ke5 {[%emt 0:00:01]} 87. Ke3 {[%emt 0:00:01]} Ke6 {[%emt 0:00:00]} 88. Kd4 {[%emt 0:00:00]} Kd6 {[%emt 0:00:01]} 89. e5+ {[%emt 0:00:00]} Ke6 {[%emt 0:00:01]} 90. Ke4 {[%emt 0:00:00]} Ke7 {[%emt 0:00:00]} 91. Kd5 {[%emt 0:00:00]} Kd7 {[%emt 0:00:01]} 92. e6+ {[%emt 0:00:00]} Ke7 {[%emt 0:00:00]} 93. Ke5 {[%emt 0:00:01]} Ke8 {[%emt 0:00:01]} 94. Kd5 {[%emt 0:00:00]} Ke7 {[%emt 0:00:01]} 95. Ke5 {[%emt 0:00:01]} Ke8 {[%emt 0:00:01]} 96. Kd6 {[%emt 0:00:00]} Kd8 {[%emt 0:00:00]} 97. e7+ {[%emt 0:00:00]} Ke8 {[%emt 0:00:01]} 98. Ke6 {[%emt 0:00:00]} 1/2-1/2